bitfinex/quotes_ETHUSD_20250328
["timestamp","ask_amount","ask_price","bid_price","bid_amount"]
[1743137752573,6.09041632,1933.4,1931.7,1.035325]
[1743137752574,4.17497305,1933.1,1931.8,1.5073]
[1743137752789,13.73924031,1934.6,1932.9,5.1733]
[1743137752790,7.75,1933.0,1932.9,5.1733]
[1743137752989,27.373,1934.0,1933.3,5.17225]
[1743137753287,7.749,1933.5,1933.4,5.2239471]
[1743137753471,7.749,1933.5,1933.4,5.17223]
[1743137754698,0.05,1933.9,1933.8,5.17116]
[1743137754860,0.05,1933.9,1933.8,5.22285639]
[1743137755064,0.05,1933.9,1933.8,7.84828764]
[1743137755248,0.05,1933.9,1933.8,6.80886]
[1743137755575,0.05,1933.9,1933.8,6.86055573]
[1743137755779,0.05,1933.9,1933.8,6.80886]
[1743137756155,1e-05,1933.9,1933.8,6.80886]
[1743137756482,7.745,1934.7,1934.6,5.16902]
[1743137756676,7.745,1934.9,1934.5,5.16929]
[1743137756844,7.744,1934.8,1934.3,5.16961]
[1743137757184,7.744,1934.7,1934.4,5.16952]
[1743137757369,7.744,1934.6,1934.4,5.16952]
[1743137757687,7.744,1934.5,1934.3,5.16961]
[1743137757853,7.743,1934.5,1934.3,5.16961]
[1743137758044,8.5173,1934.5,1933.7,1.5218]
[1743137758249,8.5173,1934.5,1933.6,5.17169]
[1743137758449,3.0,1934.4,1933.4,6.69394]
[1743137758667,0.55,1934.3,1933.5,5.17184]
[1743137758873,8.02670305,1934.4,1933.5,5.17174]
[1743137759085,8.02670305,1934.4,1933.4,5.17219]
[1743137759277,0.80267031,1934.3,1933.6,5.17155]
[1743137759481,0.80267031,1934.3,1933.5,5.17195]
[1743137759779,0.80267031,1934.3,1933.1,6.69481]
[1743137759985,0.80267031,1934.3,1933.8,5.17092]
[1743137760152,0.85173,1934.4,1933.9,0.05170106]
[1743137760353,7.739,1934.3,1934.1,5.17025]
[1743137760654,7.739,1934.3,1934.1,5.17016]
[1743137760877,7.739,1934.3,1934.2,5.17009]
[1743137761255,7.739,1934.3,1933.9,5.17069]
[1743137761454,4.17497305,1935.4,1934.4,5.16934]
[1743137761659,4.17497305,1935.5,1934.5,5.22081395]
[1743137761859,5.21568,1935.9,1934.3,1.5336]
[1743137761860,4.17497305,1935.2,1934.3,11.87291]
[1743137762054,4.17497305,1934.9,1933.9,5.17089]
[1743137762278,7.737,1934.8,1933.6,5.1717]
[1743137762463,3.0,1934.7,1933.9,5.17076]
[1743137762864,3.0,1934.7,1934.0,0.05169925]
[1743137763154,3.0,1934.7,1934.0,5.22219925]
[1743137763479,3.0,1934.7,1934.1,5.17024]
[1743137763681,0.3,1934.6,1933.7,5.17143]
[1743137763884,0.3,1934.6,1934.1,5.17014]
[1743137764082,0.3,1934.6,1934.3,5.16968]
[1743137764284,1.01967409,1935.0,1934.5,5.16913]
[1743137764508,7.734,1934.9,1934.5,5.16913]
[1743137764713,7.734,1934.9,1934.4,5.16952]
[1743137764860,7.734,1934.9,1934.1,5.17021]
[1743137765058,0.7734,1934.8,1934.1,5.17016]
[1743137765560,0.7734,1934.8,1934.2,5.17008]
[1743137765755,0.7734,1934.8,1934.1,5.17016]
[1743137765961,1.05398456,1934.6,1934.0,5.17046]
[1743137766287,1.05398456,1934.6,1933.7,10.3425]
[1743137766489,1.05398456,1934.6,1933.4,1.5145]
[1743137766690,1.05398456,1934.6,1933.9,5.17079]
[1743137766985,1.05398456,1934.6,1933.8,5.17103]
[1743137767189,3.0,1934.5,1933.2,5.17257]
[1743137767494,0.3,1934.4,1933.7,5.17142]
[1743137767663,7.73,1934.3,1933.7,5.17142]
[1743137768063,7.73,1934.3,1933.8,10.34186]
[1743137768286,7.73,1934.3,1933.8,5.17092]
[1743137768489,7.73,1934.3,1933.9,10.39327415]
[1743137768681,8.533,1934.3,1933.9,5.17078]
[1743137768996,8.533,1934.3,1933.9,5.17075]
[1743137769162,7.73,1934.3,1934.2,5.17009]
[1743137769363,7.728,1934.5,1934.4,5.16937]
[1743137770874,7.728,1934.5,1934.3,5.16982]
[1743137771289,32.90771578,1935.6,1933.6,4.17497305]
[1743137771290,5.456,1936.9,1934.5,0.1]
[1743137771477,0.0481,1939.5,1937.7,1.5145]
[1743137771478,3.5187,1939.5,1937.7,1.5145]
[1743137771677,3.0,1940.0,1938.4,4.17497305]
[1743137771884,0.3,1939.9,1939.1,5.15678]
[1743137772086,5.15624,1939.4,1937.9,4.17497305]
[1743137772399,1.0239771,1939.0,1937.3,5.16157]
[1743137772699,1.01454383,1938.4,1937.3,5.16207]
[1743137772884,9.33451305,1938.2,1936.2,5.16475]
[1743137773087,1.05445385,1937.4,1936.7,5.1632]
[1743137773402,1.02200752,1936.8,1935.1,4.17497305]
[1743137773699,1.02200752,1936.8,1934.9,5.16822]
[1743137773700,0.55,1936.4,1934.9,5.16822]
[1743137773864,1.5146,1936.5,1934.5,0.59894731]
[1743137773865,0.55,1936.0,1934.5,0.59894731]
[1743137774066,0.55,1935.7,1934.4,5.95956163]
[1743137774302,0.55,1935.3,1934.4,0.79020163]
[1743137774488,4.17497305,1934.6,1934.1,0.05]
[1743137774664,1.5146,1934.3,1932.8,5.2886787]
[1743137774869,4.17497305,1933.7,1932.8,0.1148587]
[1743137775070,3.55,1933.0,1932.7,0.01495417]
[1743137775319,3.0,1932.5,1930.7,4.17497305]
[1743137775614,3.0,1932.5,1930.1,27.395]
[1743137775615,4.72497305,1932.2,1930.9,10.35374386]
[1743137775798,14.94435275,1932.2,1930.9,5.17499386]
[1743137776000,3.0,1931.3,1930.1,0.05]
[1743137776305,3.0,1931.1,1930.1,0.05]
[1743137776599,0.55,1930.9,1930.1,0.05]
[1743137776802,3.0,1930.8,1928.6,1.579]
[1743137777099,5.49731342,1929.7,1928.4,5.18548]
[1743137777305,1.04308436,1929.5,1928.2,15.49220122]
[1743137777468,7.725,1929.7,1929.0,5.18403]
[1743137777668,0.0385397,1930.6,1929.6,5.18222]
[1743137777868,42.6544,1931.8,1930.1,5.18107]
[1743137777869,0.0385397,1931.3,1930.1,5.18107]
[1743137778081,0.0385397,1931.4,1930.4,5.18016]
[1743137778300,0.0385397,1931.4,1930.2,1.6272]
[1743137778465,0.0385397,1931.4,1929.7,0.518222]
[1743137778804,0.55,1931.0,1929.6,5.18229]
[1743137778982,0.55,1931.0,1929.9,5.18145]
[1743137778983,3.0385397,1930.9,1929.9,5.18145]
[1743137779178,0.55,1930.8,1929.7,5.1821]
[1743137779391,3.0,1930.6,1929.5,5.18268]
[1743137779589,0.8885397,1930.5,1929.5,0.674418]
[1743137779788,0.3385397,1930.5,1928.9,0.1148587]
[1743137779976,0.55,1930.3,1928.9,0.1148587]
[1743137780310,3.0,1930.4,1928.9,0.1148587]
[1743137780311,5.18188,1929.8,1928.9,0.1148587]
[1743137780516,35.1455397,1929.7,1928.9,0.1148587]
[1743137780807,1.04899271,1929.5,1928.9,0.1148587]
[1743137780985,0.0385397,1929.6,1929.4,5.18278]
[1743137781186,0.0385397,1929.6,1928.9,0.1148587]
[1743137781187,7.729,1929.6,1928.9,0.1148587]
[1743137781382,0.55,1929.4,1928.9,0.1148587]
[1743137781579,0.0385397,1929.3,1928.9,0.1148587]
[1743137781784,0.55,1929.4,1928.9,0.1148587]
[1743137782020,0.55,1929.2,1928.9,0.1148587]
[1743137782309,0.55,1929.0,1928.9,0.1148587]
[1743137782517,7.729,1929.0,1928.9,0.1148587]
[1743137782884,7.729,1929.0,1928.9,5.2991587]
[1743137783079,7.729,1929.0,1928.9,6.34750957]
[1743137783386,0.0385397,1929.9,1929.6,5.18242]
[1743137783597,7.733,1929.8,1929.5,5.18252]
[1743137783789,7.733,1929.8,1929.7,5.18215]
[1743137784119,0.0385397,1930.4,1929.7,1.036445]
[1743137784319,7.733,1930.6,1930.5,5.18]
[1743137784520,7.733,1930.6,1930.5,19.68]
[1743137784716,4.91303305,1930.9,1930.8,5.1792]
[1743137785020,3.05e-06,1930.9,1930.8,6.215058]
[1743137785540,7.783,1931.9,1931.8,5.17651]
[1743137785745,7.783,1931.9,1931.4,5.17757]
[1743137786036,7.783,1931.9,1931.8,5.17651]
[1743137786318,0.05,1931.9,1931.8,0.65697252]
[1743137786487,0.05,1931.9,1931.8,5.83348252]
[1743137786692,0.05,1931.9,1931.8,5.88523377]
[1743137787024,1e-05,1931.9,1931.8,8.83348252]
[1743137787389,7.733,1932.7,1932.6,5.17437]
[1743137787710,7.733,1932.7,1932.6,5.22610757]
[1743137788017,7.732,1932.8,1932.5,5.12197243]
[1743137788217,7.732,1932.8,1932.7,5.1741]
[1743137788418,7.732,1932.8,1932.6,5.17437]
[1743137788619,7.732,1932.8,1932.7,5.1741]
[1743137788836,7.732,1932.8,1932.5,5.12197243]
[1743137789141,7.732,1932.8,1932.2,5.17527]
[1743137789142,7.732,1932.8,1932.2,5.1752]
[1743137789294,0.06466868,1932.7,1931.4,5.17759]
[1743137789490,0.06466868,1932.7,1931.8,5.17632]
[1743137789731,0.06466868,1932.7,1931.3,7.10221342]
[1743137789732,0.06466868,1932.7,1931.5,5.1773]
[1743137789927,8.282,1932.8,1931.9,10.3524]
[1743137790090,7.732,1932.8,1932.1,5.1757]
[1743137790290,0.06468815,1932.7,1932.0,5.17577]
[1743137790532,0.06468815,1932.7,1932.1,5.693207]
[1743137790689,0.06468815,1932.7,1932.2,0.02745537]
[1743137790884,0.06468815,1932.7,1932.1,0.517577]
[1743137792090,5.01438815,1932.7,1931.6,5.17691]
[1743137792337,5.01438815,1932.7,1931.6,10.35385]
[1743137792509,5.01438815,1932.7,1931.7,0.0274786]
[1743137792840,5.01438815,1932.7,1931.3,12.27999342]
[1743137793004,0.55,1932.5,1931.4,1.22799934]
[1743137793192,0.06470125,1932.4,1931.7,10.35321]
[1743137793396,0.06470125,1932.4,1931.8,5.20388246]
[1743137793619,0.06469705,1932.5,1931.8,5.20388246]
[1743137794023,0.06469705,1932.5,1931.8,0.02748246]
[1743137794319,0.06469705,1932.5,1931.8,5.72439371]
[1743137794531,7.729,1932.4,1931.9,5.17613]
[1743137794730,0.06469654,1932.5,1932.0,0.02747434]
[1743137794934,0.06469654,1932.5,1931.7,5.17664]
[1743137794935,7.729,1932.3,1931.7,5.17664]
[1743137795228,7.729,1932.3,1931.8,5.1763]
[1743137795229,0.06470123,1932.2,1931.8,5.1763]
[1743137795526,7.729,1932.1,1932.0,5.17586]
[1743137795725,7.729,1932.1,1931.8,5.6941]
[1743137795926,7.729,1932.1,1931.8,5.20394481]
[1743137796227,7.729,1932.1,1932.0,5.17598]
[1743137796397,7.729,1932.3,1932.2,5.1753]
[1743137796601,7.729,1932.3,1932.1,5.17559]
[1743137796902,7.679,1932.3,1932.2,5.17544]
[1743137797326,7.679,1932.3,1932.1,5.17558]
[1743137797530,7.679,1932.3,1931.5,10.67462342]
[1743137797531,0.06468719,1932.2,1931.7,5.17665]
[1743137797711,7.679,1932.3,1931.8,5.1765]
[1743137797897,7.679,1932.3,1931.7,5.17665]
[1743137798101,7.679,1932.3,1931.8,5.20381032]
[1743137798502,7.679,1932.3,1931.9,5.17622]
[1743137798927,7.679,1932.3,1932.0,5.17596]
[1743137799130,7.679,1932.3,1931.9,5.17614]
[1743137799343,7.679,1932.3,1931.7,0.02747181]
[1743137799560,7.679,1932.3,1931.9,5.17608]
[1743137799752,7.679,1932.3,1931.8,5.17632]
[1743137799955,0.06469558,1932.2,1931.8,5.17632]
[1743137800235,0.06470096,1932.2,1931.8,10.35266]
[1743137800415,0.06470096,1932.2,1931.9,5.17622]
[1743137800617,7.679,1932.3,1931.9,10.35217]
[1743137801012,7.679,1932.3,1931.9,5.17606]
[1743137801741,7.679,1932.3,1932.0,10.37908182]
[1743137801945,7.679,1932.3,1932.1,5.17567]
[1743137802242,7.727,1932.3,1931.8,5.1765]
[1743137802446,7.727,1932.3,1932.2,5.17544]
[1743137802743,7.727,1932.3,1932.1,5.17563]
[1743137802946,7.727,1932.3,1931.9,5.17621]
[1743137803169,7.727,1932.3,1932.0,5.17583]
[1743137803711,7.727,1932.3,1931.9,5.17613]
[1743137803915,7.727,1932.3,1932.0,5.17593]
[1743137804325,7.727,1932.3,1932.0,1.035206]
[1743137804531,7.727,1932.3,1931.5,6.56477576]
[1743137804532,7.727,1932.3,1932.2,5.17544]
[1743137804737,0.0646874,1932.9,1932.3,5.17498]
[1743137804932,7.726,1932.8,1932.2,5.1754]
[1743137805137,0.06468222,1932.7,1932.3,5.17506]
[1743137805353,0.06468222,1932.7,1932.3,5.2025071]
[1743137805553,0.06468222,1932.7,1932.3,1.06522579]
[1743137805755,0.0646822,1933.0,1932.6,5.17424]
[1743137805968,1.3997,1933.1,1932.6,5.17424]
[1743137805969,7.726,1933.1,1933.0,5.17326]
[1743137806641,7.726,1933.1,1932.9,5.17349]
[1743137806642,7.726,1933.1,1932.9,5.1734]
[1743137806823,7.726,1933.1,1932.3,5.49731342]
[1743137807027,0.06466812,1933.0,1932.5,5.1745]
[1743137807227,7.726,1933.1,1932.6,5.17423]
[1743137807536,7.726,1933.1,1932.5,5.17464]
[1743137807738,0.06467085,1933.0,1932.0,5.17598]
[1743137807942,1.3997,1932.9,1932.2,5.17522]
[1743137808128,0.06468689,1932.8,1932.4,5.17487]
[1743137808332,0.06468129,1933.0,1932.4,5.17477]
[1743137808562,0.06468129,1933.0,1932.3,5.17493]
[1743137808758,3.06468129,1933.0,1931.9,5.17609]
[1743137808961,0.30646813,1932.9,1932.0,5.17596]
[1743137809172,0.06469165,1932.8,1931.9,5.17622]
[1743137809481,0.55,1932.7,1931.7,5.17664]
[1743137809682,0.06469512,1932.6,1931.8,5.17636]
[1743137809897,7.724,1932.5,1931.9,5.20357292]
[1743137810068,0.06469499,1932.4,1932.0,5.17595]
[1743137810259,7.724,1932.5,1931.6,5.17701]
[1743137810260,7.724,1932.5,1932.1,5.17555]
[1743137810464,0.44017777,1932.4,1932.2,0.02745996]
[1743137810658,0.44017777,1932.4,1932.1,5.17552]
[1743137811186,0.44017777,1932.4,1932.2,0.0274521]
[1743137811384,0.44017777,1932.4,1932.1,5.17552]
[1743137812179,0.44017777,1932.4,1932.0,5.17593]
[1743137812580,0.44017777,1932.4,1932.1,5.17569]
[1743137813292,0.44017777,1932.4,1932.2,5.1753]
[1743137813585,0.44017777,1932.4,1932.2,5.20271519]
[1743137813778,0.44017777,1932.4,1932.2,5.17523]
[1743137813975,0.44017777,1932.4,1932.3,5.17517]
[1743137814179,0.44017777,1932.4,1932.3,5.20261069]
[1743137814370,0.44017777,1932.4,1932.3,10.67248342]
[1743137814562,0.71152269,1932.4,1932.3,10.67248342]
[1743137814958,0.71152269,1932.4,1932.3,5.17517]
[1743137815162,0.71152269,1932.4,1932.2,5.17523]
[1743137815362,0.71152269,1932.4,1932.3,5.17517]
[1743137815588,0.71152269,1932.4,1932.3,5.20261665]
[1743137815894,0.71152269,1932.4,1932.2,10.35052]
[1743137816074,0.71152269,1932.4,1932.2,5.17523]
[1743137816257,0.71152269,1932.4,1932.0,5.17579]
[1743137816462,0.71152269,1932.4,1932.0,10.35161]
[1743137816688,1.15782882,1932.4,1932.1,5.17569]
[1743137817178,1.15782882,1932.4,1932.3,5.17517]
[1743137817383,8.87882882,1932.4,1932.3,5.20261758]
[1743137817565,8.87882882,1932.4,1932.3,5.17517]
[1743137817771,8.87882882,1932.4,1932.2,5.17525]
[1743137817965,8.87882882,1932.4,1932.2,5.17521]
[1743137818969,8.87882882,1932.4,1931.8,6.69794]
[1743137819277,1.15782882,1932.3,1931.9,5.17617]
[1743137819484,1.15782882,1932.3,1931.9,5.17608]
[1743137819802,1.15782882,1932.3,1932.0,5.17597]
[1743137820207,1.15782882,1932.3,1932.0,0.02746648]
[1743137820512,1.15782882,1932.3,1931.8,5.1763]
[1743137820862,1.15782882,1932.2,1931.7,5.17675]
[1743137821069,0.06469614,1932.1,1931.4,6.81195]
[1743137821389,0.06469614,1932.1,1931.7,5.17667]
[1743137821693,0.06469614,1932.1,1931.6,10.35384]
[1743137821892,0.06469614,1932.1,1931.6,5.17691]
[1743137822194,1.15782882,1932.0,1931.0,6.783]
[1743137822391,1.15782882,1932.0,1930.3,32.56142]
[1743137822392,0.61471343,1931.9,1930.8,5.17908]
[1743137822560,1.02027481,1931.9,1931.6,5.17684]
[1743137822762,1.15782882,1932.0,1931.4,1.6045]
[1743137822983,1.15782882,1932.0,1931.5,4.17081038]
[1743137823290,1.15782882,1932.0,1931.9,5.17625]
[1743137823668,0.71152269,1932.2,1932.1,5.17571]
[1743137823869,0.71152269,1932.2,1932.1,10.40912933]
[1743137824068,0.71152269,1932.2,1932.1,11.98688138]
[1743137824791,0.71152269,1932.2,1932.1,5.17571]
[1743137825363,7.718,1932.4,1932.2,5.17528]
[1743137825867,7.718,1932.4,1932.3,5.17517]
[1743137826068,7.717,1932.5,1932.4,5.1749]
[1743137826463,0.44626746,1932.8,1932.4,5.1749]
[1743137826659,0.44626746,1932.5,1932.4,0.02743858]
[1743137826870,0.44626746,1932.5,1932.4,5.20234858]
[1743137827076,0.44626746,1932.5,1932.4,9.86598124]
[1743137827358,0.44626746,1932.5,1932.4,11.49860501]
[1743137827588,0.44626746,1932.5,1932.4,10.95092038]
[1743137827896,0.44626746,1932.5,1932.4,6.78011]
[1743137828091,0.44626746,1932.5,1932.4,5.17491]
[1743137828395,7.717,1932.8,1932.5,5.17463]
[1743137829065,7.717,1932.8,1932.5,10.34914]
[1743137829263,7.717,1932.8,1932.5,5.17451]
[1743137829659,0.44626746,1932.7,1932.1,4.17081038]
[1743137829896,0.44626746,1932.7,1932.4,5.17485]
[1743137830295,1.26259421,1932.7,1931.4,7.0303]
[1743137830593,0.61467513,1932.6,1931.8,5.17627]
[1743137830974,1.06094259,1932.6,1931.7,5.17666]
[1743137831175,1.06094259,1932.6,1931.8,5.17651]
[1743137831176,0.51094259,1932.6,1931.8,5.17651]
[1743137831372,0.44626746,1932.6,1931.9,0.02747312]
[1743137831581,0.44626746,1932.6,1932.0,5.17576]
[1743137831775,0.0646859,1932.5,1931.9,5.17613]
[1743137832399,0.0646859,1932.5,1931.9,10.35223]
[1743137832595,0.0646859,1932.5,1931.8,5.17647]
[1743137832796,0.44626746,1932.4,1931.8,5.17647]
[1743137833096,0.44626746,1932.4,1932.0,5.17585]
[1743137833473,0.44626746,1932.4,1931.9,5.17606]
[1743137833670,0.44626746,1932.4,1932.0,0.02746973]
[1743137833903,0.06469185,1932.3,1931.4,6.75171]
[1743137834085,7.714,1932.2,1931.6,5.177]
[1743137834283,7.714,1932.2,1931.7,5.17657]
[1743137834468,7.714,1932.2,1931.7,10.35316]
[1743137834669,7.714,1932.1,1931.8,5.17649]
[1743137834995,0.44626746,1932.3,1932.0,5.17582]
[1743137835218,7.714,1932.4,1932.2,5.17544]
[1743137835584,7.714,1932.4,1932.3,5.17517]
[1743137836202,0.06468988,1932.8,1932.5,5.1746]
[1743137836398,7.713,1932.7,1932.5,5.17452]
[1743137836696,7.713,1932.6,1932.5,5.17452]
[1743137837371,7.712,1933.2,1933.0,5.17317]
[1743137837572,7.712,1933.2,1933.1,5.17303]
[1743137838071,1.3997,1934.0,1933.5,5.17196]
[1743137838302,1.3997,1934.0,1933.6,5.17158]
[1743137838599,7.712,1933.8,1933.6,5.17158]
[1743137838979,0.0646394,1933.7,1933.0,5.17319]
[1743137839183,0.0646394,1933.7,1932.9,0.39343956]
[1743137839382,0.0646394,1933.7,1933.0,5.17317]
[1743137839576,0.0646394,1933.7,1933.1,5.17303]
[1743137839790,7.711,1933.6,1933.2,5.17254]
[1743137839989,0.05,1933.9,1933.6,5.1717]
[1743137840298,7.761,1933.9,1933.8,5.17116]
[1743137840674,0.05,1933.9,1933.8,5.17116]
[1743137840877,7.76,1933.9,1933.8,5.19850753]
[1743137841082,7.76,1933.9,1933.8,5.17116]
[1743137841895,7.759,1933.9,1933.8,5.17116]
[1743137842292,0.05,1933.9,1933.8,6.23276511]
[1743137842497,0.05,1933.9,1933.8,5.17116]
[1743137843072,0.05,1933.9,1933.8,5.19849718]
[1743137843788,0.05,1933.9,1933.8,5.17116]
[1743137843988,0.05,1933.9,1933.8,5.19849573]
[1743137844891,0.05,1933.9,1933.8,5.17116]
[1743137845095,0.05,1933.9,1933.8,5.19849585]
[1743137845299,0.05,1933.9,1933.8,5.17116]
[1743137845896,0.05,1933.9,1933.8,6.23276125]
[1743137846517,0.05,1933.9,1933.8,6.205419]
[1743137847113,0.05,1933.9,1933.8,6.23273757]
[1743137847318,4.17081038,1935.7,1933.8,5.63577757]
[1743137847497,0.06459316,1935.6,1935.0,5.16777]
[1743137847813,1.0611069,1935.3,1935.0,5.16784]
[1743137848011,7.704,1935.2,1934.8,5.16826]
[1743137848187,7.704,1935.2,1934.9,5.16809]
[1743137848509,7.704,1935.1,1935.0,5.16795]
[1743137848696,0.06459872,1935.6,1935.1,5.16754]
[1743137848901,7.704,1935.5,1934.9,5.16812]
[1743137849111,7.704,1935.5,1935.3,5.16694]
[1743137849615,1.4497,1935.7,1935.3,5.16694]
[1743137849616,7.702,1935.4,1935.3,5.16694]
[1743137850017,1.4497,1935.7,1935.4,5.16668]
[1743137850311,0.05,1935.9,1935.5,5.1666]
[1743137850615,0.05,1935.9,1935.2,5.16742]
[1743137850819,0.05,1935.9,1935.3,5.16701]
[1743137851117,1.51427804,1935.8,1935.2,5.16742]
[1743137851317,1.51427804,1935.8,1935.0,5.1677]
[1743137851493,1.51427804,1935.8,1935.1,5.16754]
[1743137851699,1.51427804,1935.8,1935.3,10.33397]
[1743137852020,1.51427804,1935.8,1935.3,5.16694]
[1743137852226,1.51427804,1935.8,1935.1,5.16753]
[1743137852733,1.04152201,1935.6,1934.7,5.16874]
[1743137852886,0.55,1935.4,1934.7,5.16874]
[1743137853088,0.1148587,1936.6,1935.7,10.33197]
[1743137853309,0.1148587,1936.6,1935.5,5.16656]
[1743137853310,2.54661045,1935.9,1935.5,5.16656]
[1743137853512,0.05,1935.9,1935.8,5.16582]
[1743137853721,0.05,1935.9,1935.8,5.21746864]
[1743137853925,0.05,1935.9,1935.8,5.16582]
[1743137854521,7.748,1935.9,1935.8,5.16582]
[1743137855028,0.05,1935.9,1935.8,5.16582]
[1743137856108,0.05,1935.9,1935.7,5.16598]
[1743137856311,0.05,1935.9,1935.8,5.16582]
[1743137856718,0.05,1935.9,1935.8,6.25065416]
[1743137856905,0.1148587,1936.6,1936.5,5.16395]
[1743137857104,0.1148587,1936.6,1936.3,5.16444]
[1743137857326,0.1148587,1936.6,1936.3,5.16436]
[1743137857501,7.8098587,1936.6,1936.3,5.16436]
[1743137857701,7.8098587,1936.6,1936.4,5.16408]
[1743137858128,7.8098587,1936.6,1936.4,5.16418]
[1743137858328,7.8098587,1936.6,1936.5,5.16395]
[1743137859506,7.8098587,1936.6,1936.4,5.16401]
[1743137859707,7.8098587,1936.6,1936.5,5.16395]
[1743137859898,0.1148587,1936.6,1936.5,5.16395]
[1743137860542,0.1148587,1936.6,1936.4,5.16401]
[1743137860712,7.8068587,1936.6,1936.4,5.16401]
[1743137861097,0.03731733,1936.5,1935.4,1.645]
[1743137861442,0.03731733,1936.5,1935.9,5.16542]
[1743137861443,1.4497,1936.4,1935.9,5.16542]
[1743137861739,0.03731733,1936.3,1935.9,5.16542]
[1743137861900,7.691,1936.2,1936.1,5.165]
[1743137862094,7.691,1936.2,1935.9,10.33081]
[1743137862298,7.691,1936.2,1935.9,5.1654]
[1743137862707,7.691,1936.2,1936.1,5.16502]
[1743137862929,7.691,1936.2,1936.0,5.16511]
[1743137863105,7.691,1936.2,1936.1,5.16502]
[1743137863311,1.4497,1936.4,1936.2,5.16468]
[1743137863506,7.69,1936.3,1936.2,5.16461]
[1743137864027,7.69,1936.3,1936.1,5.16502]
[1743137864028,7.69,1936.3,1936.1,5.1648]
[1743137864220,0.15217603,1936.6,1936.3,5.16432]
[1743137864531,7.69,1936.5,1936.4,5.16422]
[1743137865228,7.72731733,1936.5,1936.1,5.1648]
[1743137865431,8.5078032,1936.5,1935.8,5.1657]
[1743137865632,8.5078032,1936.5,1935.6,5.16635]
[1743137865927,8.5078032,1936.5,1936.2,5.16463]
[1743137866133,7.69,1936.5,1936.4,5.16422]
[1743137866317,7.69,1936.5,1935.7,4.17081038]
[1743137866318,0.1148587,1936.6,1936.3,5.16434]
[1743137866524,7.689,1936.5,1936.4,5.1641]
[1743137866930,0.1148587,1936.6,1936.5,5.16395]
[1743137869229,0.1148587,1936.6,1936.5,5.21557904]
[1743137869531,0.1148587,1936.6,1936.5,7.21920944]
[1743137870506,0.1148587,1936.6,1936.5,7.27083676]
[1743137872419,0.1148587,1936.6,1936.5,7.21920944]
[1743137872620,0.1148587,1936.6,1936.5,21.71920944]
[1743137873231,8.7e-06,1936.6,1936.5,21.71920944]
[1743137875908,8.7e-06,1936.6,1936.5,23.38500944]
[1743137876111,8.7e-06,1936.6,1936.5,27.69800944]
[1743137876314,9.1337,1937.8,1937.7,5.16075]
[1743137876539,1.4497,1937.8,1937.6,5.16087]
[1743137876726,1.4497,1937.8,1937.7,5.16075]
[1743137877541,0.05,1937.9,1937.7,5.16075]
[1743137877728,7.683,1937.8,1937.7,5.16075]
[1743137877934,7.733,1937.9,1937.8,5.16049]
[1743137878319,0.05,1937.9,1937.8,5.78376376]
[1743137878645,0.05,1937.9,1937.3,14.5]
[1743137878845,4.72081038,1937.8,1937.1,5.16211]
[1743137879010,0.03731733,1937.7,1936.7,5.16341]
[1743137879216,0.03731733,1937.7,1936.8,0.516341]
[1743137879412,7.681,1937.6,1937.3,5.1617]
[1743137879638,7.681,1937.6,1937.5,5.16129]
[1743137879837,7.681,1937.6,1937.4,10.32275]
[1743137880117,7.681,1937.6,1937.3,5.16179]
[1743137880541,7.681,1937.6,1937.3,5.1617]
[1743137880744,7.71831733,1937.6,1937.3,5.16167]
[1743137881047,7.681,1937.6,1937.1,10.37592238]
[1743137881248,7.71831733,1937.6,1937.2,5.16202]
[1743137881542,7.71831733,1937.6,1937.3,5.16158]
[1743137881724,7.71831733,1937.6,1937.1,5.1621]
[1743137881926,7.71831733,1937.6,1937.4,5.16139]
[1743137882242,7.681,1937.6,1937.4,5.16139]
[1743137882443,0.44524425,1937.5,1937.4,10.32284]
[1743137882667,0.44524425,1937.5,1937.4,5.16139]
[1743137883454,0.44524425,1937.5,1937.4,5.21300027]
[1743137883859,0.44524425,1937.5,1937.4,5.16139]
[1743137884223,7.679,1937.7,1937.5,5.16103]
[1743137884728,0.03731733,1937.6,1937.3,5.1616]
[1743137885122,0.80894906,1937.6,1936.7,5.16339]
[1743137885323,9.1004,1937.5,1936.7,5.16331]
[1743137885524,0.03731733,1937.4,1936.9,5.16277]
[1743137886119,0.03731733,1937.4,1936.8,0.05162841]
[1743137886318,9.1004,1937.5,1936.8,0.05162841]
[1743137886641,7.677,1937.5,1937.4,5.16155]
[1743137886843,0.03731733,1937.8,1937.6,5.16086]
[1743137887020,7.677,1937.7,1937.6,5.16086]
[1743137887225,0.05,1937.9,1937.8,5.16049]
[1743137887447,0.05,1937.9,1937.8,5.21208879]
[1743137887647,0.05,1937.9,1937.8,5.2120888]
[1743137888018,0.05,1937.9,1937.8,6.19776588]
[1743137889072,0.05,1937.9,1937.8,6.24935929]
[1743137889427,0.05,1937.9,1937.8,6.19776588]
[1743137889828,0.05,1937.9,1937.8,6.24935891]
[1743137890174,1e-05,1937.9,1937.8,10.42016929]
[1743137890472,1e-05,1937.9,1937.8,10.36857626]
[1743137892267,1e-05,1937.9,1937.8,27.86857626]
[1743137893958,1e-05,1937.9,1937.8,6.19776588]
[1743137894188,1e-05,1937.9,1937.8,6.24935468]
[1743137894891,1e-05,1937.9,1937.8,10.42016506]
[1743137895062,1e-05,1937.9,1937.8,10.36857626]
[1743137895799,1.04895989,1938.8,1938.4,5.15889]
[1743137895958,7.671,1938.7,1938.3,5.15913]
[1743137896158,7.671,1938.7,1938.4,5.15889]
[1743137896985,7.671,1938.7,1938.2,5.15926]
[1743137896986,7.671,1938.7,1938.3,5.15913]